lending/lending_fUSD_20240507
["ID","MTS","AMOUNT","RATE_DAILY","PERIOD"]
[326566039,1715110247536,-1728.63,0.00019452,2]
[326566040,1715110247546,-500.0,0.00019452,2]
[326566043,1715110247559,-500.0,0.00019452,2]
[326566044,1715110247572,-500.0,0.00019452,2]
[326566045,1715110247586,-500.0,0.00019452,2]
[326566046,1715110247600,-1106.35,0.00019452,2]
[326566047,1715110247612,-1963.36,0.00019452,2]
[326566048,1715110247623,-662.96,0.00019452,2]
[326566049,1715110247633,-647.86,0.00019452,2]
[326566050,1715110247647,-500.0,0.00019452,2]
[326566051,1715110247659,-645.05,0.00019452,2]
[326566052,1715110247671,-500.0,0.00019452,2]
[326566053,1715110247684,-4912.36,0.00019452,2]
[326566054,1715110247696,-500.0,0.00019452,2]
[326566055,1715110247710,-500.0,0.00019452,2]
[326566056,1715110247722,-979.26,0.00019452,2]
[326566057,1715110247735,-900.23,0.00019452,2]
[326566058,1715110247749,-500.0,0.00019452,2]
[326566059,1715110247763,-500.0,0.00019452,2]
[326566060,1715110247775,-894.2,0.00019452,2]
[326566061,1715110247787,-500.0,0.00019452,2]
[326566062,1715110247799,-500.0,0.00019452,2]
[326566063,1715110247811,-681.9,0.00019452,2]
[326566064,1715110247822,-500.0,0.00019452,2]
[326566065,1715110247835,-550.54,0.00019452,2]
[326566066,1715110247849,-500.0,0.00019452,2]
[326566067,1715110247860,-1649.73,0.00019452,2]
[326566068,1715110247871,-806.48,0.00019452,2]
[326566069,1715110247881,-864.32,0.00019452,2]
[326566070,1715110247892,-500.0,0.00019452,2]
[326566071,1715110247904,-500.0,0.00019452,2]
[326566072,1715110247914,-756.1,0.00019452,2]
[326566073,1715110247926,-1315.15,0.00019452,2]
[326566074,1715110247943,-516.04,0.00019452,2]
[326566075,1715110247955,-500.0,0.00019452,2]
[326566076,1715110247968,-1269.42,0.00019452,2]
[326566077,1715110247980,-2265.37,0.00019452,2]
[326566078,1715110247993,-1224.69,0.00019452,2]
[326566079,1715110248008,-500.0,0.00019452,2]
[326566080,1715110248020,-500.0,0.00019452,2]
[326566081,1715110248033,-500.0,0.00019452,2]
[326566082,1715110248044,-500.0,0.00019452,2]
[326566083,1715110248054,-892.65,0.00019452,2]
[326566084,1715110248064,-500.0,0.00019452,2]
[326566085,1715110248075,-500.0,0.00019452,2]
[326566086,1715110248086,-500.0,0.00019452,2]
[326566087,1715110248098,-1099.22,0.00019452,2]
[326566088,1715110248110,-701.4,0.00019452,2]
[326566089,1715110248123,-500.0,0.00019452,2]
[326566090,1715110248135,-2122.37,0.00019452,2]
[326566091,1715110248145,-781.87,0.00019452,2]
[326566092,1715110248156,-716.3,0.00019452,2]
[326566093,1715110248166,-9716.2,0.00019452,2]
[326566094,1715110248177,-1460.46,0.00019452,2]
[326566095,1715110248189,-500.0,0.00019452,2]
[326566096,1715110248200,-809.83,0.00019452,2]
[326566097,1715110248210,-549.97,0.00019452,2]
[326566098,1715110248220,-500.0,0.00019452,2]
[326566099,1715110248231,-500.0,0.00019452,2]
[326566100,1715110248243,-1486.49,0.00019452,2]
[326566101,1715110248255,-500.0,0.00019452,2]
[326566102,1715110248265,-896.08,0.00019452,2]
[326566103,1715110248276,-782.8,0.00019452,2]
[326566104,1715110248288,-500.0,0.00019452,2]
[326566105,1715110248298,-500.0,0.00019452,2]
[326566106,1715110248309,-500.0,0.00019452,2]
[326566107,1715110248320,-2580.33,0.00019452,2]
[326566108,1715110248333,-589.89,0.00019452,2]
[326566109,1715110248344,-500.0,0.00019452,2]
[326566110,1715110248355,-930.45,0.00019452,2]
[326566111,1715110248366,-500.0,0.00019452,2]
[326566112,1715110248377,-500.0,0.00019452,2]
[326566113,1715110248388,-500.0,0.00019452,2]
[326566114,1715110248399,-916.1,0.00019452,2]
[326566115,1715110248410,-1261.77,0.00019452,2]
[326566116,1715110248420,-500.0,0.00019452,2]
[326566117,1715110248431,-500.0,0.00019452,2]
[326566118,1715110248443,-500.0,0.00019452,2]
[326566119,1715110248454,-500.0,0.00019452,2]
[326566120,1715110248464,-588.6,0.00019452,2]
[326566121,1715110248475,-2697.0,0.00019452,2]
[326566122,1715110248486,-555.82,0.00019452,2]
[326566123,1715110248497,-500.0,0.00019452,2]
[326566124,1715110248508,-555.42,0.00019452,2]
[326566125,1715110248518,-350.54,0.00019452,2]
[326566126,1715110248529,-1201.12168933,0.00019479,2]
[326566127,1715110248539,-302.76502378,0.00019624,2]
[326566128,1715110248550,-1192.46328437,0.00019624,2]
[326566129,1715110248561,-650.00243246,0.00019626,2]
[326566130,1715110248572,-177.44367572,0.00019626,2]
[326566131,1715110248582,-194.48369157,0.00019626,2]
[326566132,1715110248592,-1085.33034356,0.00019626,2]
[326566133,1715110248602,-330.33478645,0.00019726,2]
[326566134,1715110248613,-500.0,0.00019726,2]
[326566135,1715110248623,-500.0,0.00019726,2]
[326566136,1715110248636,-500.0,0.00019726,2]
[326566137,1715110248647,-604.24,0.00019726,2]
[326566138,1715110248658,-500.0,0.00019726,2]
[326566139,1715110248669,-500.0,0.00019726,2]
[326566140,1715110248680,-500.0,0.00019726,2]
[326566141,1715110248690,-500.0,0.00019726,2]
[326566142,1715110248701,-500.0,0.00019726,2]
[326566143,1715110248712,-500.0,0.00019726,2]
[326566144,1715110248723,-500.0,0.00019726,2]
[326566145,1715110248733,-715.85,0.00019726,2]
[326566146,1715110248744,-500.0,0.00019726,2]
[326566147,1715110248755,-500.0,0.00019726,2]
[326566148,1715110248766,-660.54,0.00019726,2]
[326566149,1715110248776,-500.0,0.00019726,2]
[326566150,1715110248787,-426.17149184,0.00019726,2]
[326566151,1715110248798,-500.0,0.00019726,2]
[326566152,1715110248809,-500.0,0.00019726,2]
[326566153,1715110248819,-500.0,0.00019726,2]
[326566154,1715110248830,-500.0,0.00019726,2]
[326566155,1715110248841,-1002.95,0.00019726,2]
[326566156,1715110248852,-500.0,0.00019726,2]
[326566157,1715110248863,-500.0,0.00019726,2]
[326566158,1715110248874,-500.0,0.00019726,2]
[326566159,1715110248884,-500.0,0.00019726,2]
[326566160,1715110248895,-500.0,0.00019726,2]
[326566161,1715110248906,-723.07,0.00019726,2]
[326566162,1715110248917,-500.0,0.00019726,2]
[326566163,1715110248929,-500.0,0.00019726,2]
[326566164,1715110248942,-500.0,0.00019726,2]
[326566165,1715110248952,-571.26,0.00019726,2]
[326566166,1715110248963,-500.0,0.00019726,2]
[326566167,1715110248975,-500.0,0.00019726,2]
[326566168,1715110248986,-500.0,0.00019726,2]
[326566169,1715110248997,-467.09208203,0.00019726,2]
[326566170,1715110249010,-500.0,0.00019726,2]
[326566171,1715110249021,-535.24671536,0.00019726,2]
[326566172,1715110249032,-500.0,0.00019726,2]
[326566173,1715110249043,-500.0,0.00019726,2]
[326566174,1715110249053,-500.0,0.00019726,2]
[326566175,1715110249064,-500.0,0.00019726,2]
[326566176,1715110249075,-636.43,0.00019726,2]
[326566177,1715110249085,-500.0,0.00019726,2]
[326566178,1715110249096,-500.0,0.00019726,2]
[326566179,1715110249107,-500.0,0.00019726,2]
[326566180,1715110249117,-592.63,0.00019726,2]
[326566181,1715110249128,-289.07852932,0.00019726,2]
[326566182,1715110249139,-500.0,0.00019726,2]
[326566183,1715110249149,-500.0,0.00019726,2]
[326566184,1715110249160,-500.0,0.00019726,2]
[326566185,1715110249170,-500.0,0.00019726,2]
[326566186,1715110249181,-700.73,0.00019726,2]
[326566187,1715110249192,-500.0,0.00019726,2]
[326566188,1715110249203,-500.0,0.00019726,2]
[326566189,1715110249214,-599.71,0.00019726,2]
[326566190,1715110249224,-500.0,0.00019726,2]
[326566191,1715110249235,-188.11,0.00019726,2]
[326566192,1715110249248,-511.24,0.00019726,2]
[326566193,1715110249258,-500.0,0.00019726,2]
[326566194,1715110249269,-500.0,0.00019726,2]
[326566195,1715110249280,-586.71,0.00019726,2]
[326566196,1715110249291,-500.0,0.00019726,2]
[326566197,1715110249301,-609.18,0.00019726,2]
[326566198,1715110249311,-500.0,0.00019726,2]
[326566199,1715110249322,-500.0,0.00019726,2]
[326566200,1715110249333,-616.2,0.00019726,2]
[326566201,1715110249345,-652.8,0.00019726,2]
[326566202,1715110249356,-500.0,0.00019726,2]
[326566203,1715110249367,-500.0,0.00019726,2]
[326566204,1715110249377,-500.0,0.00019726,2]
[326566205,1715110249388,-500.0,0.00019726,2]
[326566206,1715110249399,-500.0,0.00019726,2]
[326566207,1715110249411,-500.0,0.00019726,2]
[326566208,1715110249421,-500.0,0.00019726,2]
[326566209,1715110249431,-500.0,0.00019726,2]
[326566210,1715110249443,-658.4,0.00019726,2]
[326566211,1715110249453,-500.0,0.00019726,2]
[326566212,1715110249464,-500.0,0.00019726,2]
[326566213,1715110249475,-368.66921669,0.00019726,2]
[326566214,1715110249495,-131.33078331,0.00019726,2]
[326566215,1715110249506,-283.69583609,0.00019726,2]
[326566216,1715110249519,-216.30416391,0.00019726,2]
[326566217,1715110249530,-500.0,0.00019726,2]
[326566218,1715110249540,-196.03585794,0.00019726,2]
[326566219,1715110249553,-265.760515,0.00019726,2]
[326566220,1715110249566,-38.20362706,0.00019726,2]
[326566221,1715110249577,-500.0,0.00019726,2]
[326566222,1715110249588,-506.02,0.00019726,2]
[326566223,1715110249599,-500.0,0.00019726,2]
[326566224,1715110249610,-500.0,0.00019726,2]
[326566225,1715110249622,-500.0,0.00019726,2]
[326566226,1715110249632,-500.0,0.00019726,2]
[326566227,1715110249643,-500.0,0.00019726,2]
[326566228,1715110249655,-500.0,0.00019726,2]
[326566229,1715110249665,-500.0,0.00019726,2]
[326566230,1715110249676,-569.38,0.00019726,2]
[326566231,1715110249687,-500.0,0.00019726,2]
[326566232,1715110249697,-500.0,0.00019726,2]
[326566233,1715110249709,-500.0,0.00019726,2]
[326566234,1715110249720,-281.19637294,0.00019726,2]
[326566235,1715110250540,-178.3699235,0.00019168,2]
[326566236,1715110250564,-500.0,0.00019178,2]
[326566237,1715110250584,-502.61,0.00019178,2]
[326566238,1715110250598,-502.61,0.00019452,2]
[326566239,1715110250608,-246.98362706,0.00019726,2]
[326566240,1715110250618,-500.0,0.00019726,2]
[326566241,1715110250627,-500.0,0.00019726,2]
[326566242,1715110250637,-514.15,0.00019726,2]
[326566243,1715110250646,-483.57633261,0.00019726,2]
[326566244,1715110250656,-500.0,0.00019726,2]
[326566245,1715110250665,-518.95,0.00019726,2]
[326566246,1715110250674,-500.0,0.00019726,2]
[326566247,1715110250684,-500.0,0.00019726,2]
[326566248,1715110250693,-151.67337976,0.00019726,2]
[326566249,1715110250703,-675.67,0.00019726,2]
[326566250,1715110250712,-500.0,0.00019726,2]
[326566251,1715110250721,-500.0,0.00019726,2]
[326566252,1715110250731,-515.05,0.00019726,2]
[326566253,1715110250740,-500.0,0.00019726,2]
[326566254,1715110250751,-500.0,0.00019726,2]
[326566255,1715110250761,-500.0,0.00019726,2]
[326566256,1715110250770,-500.0,0.00019726,2]
[326566257,1715110250780,-500.0,0.00019726,2]
[326566258,1715110250790,-500.0,0.00019726,2]
[326566259,1715110250800,-500.0,0.00019726,2]
[326566260,1715110250810,-500.0,0.00019726,2]
[326566261,1715110250820,-500.0,0.00019726,2]
[326566262,1715110250829,-500.0,0.00019726,2]
[326566263,1715110250839,-500.0,0.00019726,2]
[326566264,1715110250848,-500.0,0.00019726,2]
[326566265,1715110250858,-500.0,0.00019726,2]
[326566266,1715110250868,-500.0,0.00019726,2]
[326566267,1715110250878,-500.0,0.00019726,2]
[326566268,1715110250887,-500.0,0.00019726,2]
[326566269,1715110250897,-543.21,0.00019726,2]
[326566270,1715110250906,-500.0,0.00019726,2]
[326566271,1715110250915,-500.0,0.00019726,2]
[326566272,1715110250926,-500.0,0.00019726,2]
[326566273,1715110250942,-500.0,0.00019726,2]
[326566274,1715110250952,-500.0,0.00019726,2]
[326566275,1715110250962,-500.0,0.00019726,2]
[326566276,1715110250972,-500.0,0.00019726,2]
[326566277,1715110250982,-500.0,0.00019726,2]
[326566278,1715110250992,-135.30078207,0.00019726,2]
[326566279,1715110251603,-2245.25199911,0.00019177,2]
[326566280,1715110251613,-500.0,0.00019178,2]
[326566281,1715110251623,-500.0,0.00019178,2]
[326566282,1715110251633,-500.0,0.00019178,2]
[326566283,1715110251643,-500.0,0.00019178,2]
[326566284,1715110251653,-500.0,0.00019452,2]
[326566285,1715110251662,-793.74921793,0.00019726,2]
[326566286,1715110251672,-500.0,0.00019726,2]
[326566287,1715110251681,-606.23,0.00019726,2]
[326566288,1715110251691,-806.7,0.00019726,2]
[326566289,1715110251701,-500.0,0.00019726,2]
[326566290,1715110251710,-500.0,0.00019726,2]
[326566291,1715110251720,-500.0,0.00019726,2]
[326566292,1715110251729,-500.0,0.00019726,2]
[326566293,1715110251739,-747.05,0.00019726,2]
[326566294,1715110251750,-500.0,0.00019726,2]
[326566295,1715110251760,-705.53,0.00019726,2]
[326566296,1715110251769,-500.0,0.00019726,2]
[326566297,1715110251779,-594.22,0.00019726,2]
[326566298,1715110251790,-500.0,0.00019726,2]
[326566299,1715110251800,-500.0,0.00019726,2]
[326566300,1715110251811,-500.0,0.00019726,2]
[326566301,1715110251821,-500.0,0.00019726,2]
[326566302,1715110251836,-500.0,0.00019726,2]
[326566303,1715110251846,-500.0,0.00019726,2]
[326566304,1715110251856,-500.0,0.00019726,2]
[326566305,1715110251866,-500.0,0.00019726,2]
[326566306,1715110251875,-500.0,0.00019726,2]
[326566307,1715110251885,-589.89,0.00019726,2]
[326566308,1715110251895,-500.0,0.00019726,2]
[326566309,1715110251904,-522.54,0.00019726,2]
[326566310,1715110251914,-582.25,0.00019726,2]
[326566311,1715110251924,-439.77673813,0.00019726,2]
[326566312,1715110251938,-591.48,0.00019726,2]
[326566313,1715110251948,-719.87,0.00019726,2]
[326566314,1715110251960,-500.0,0.00019726,2]
[326566315,1715110251971,-500.0,0.00019726,2]
[326566316,1715110251981,-500.0,0.00019726,2]
[326566317,1715110251991,-500.0,0.00019726,2]
[326566318,1715110252002,-500.0,0.00019726,2]
[326566319,1715110252014,-516.03,0.00019726,2]
[326566320,1715110252025,-552.11,0.00019726,2]
[326566321,1715110252034,-500.0,0.00019726,2]
[326566322,1715110252045,-1363.91,0.00019726,2]
[326566323,1715110252055,-500.0,0.00019726,2]
[326566324,1715110252066,-645.35,0.00019726,2]
[326566325,1715110252076,-740.73,0.00019726,2]
[326566326,1715110252086,-500.0,0.00019726,2]
[326566327,1715110252095,-500.0,0.00019726,2]
[326566328,1715110252105,-500.0,0.00019726,2]
[326566329,1715110252115,-500.0,0.00019726,2]
[326566330,1715110252125,-500.0,0.00019726,2]
[326566331,1715110252136,-500.0,0.00019726,2]
[326566332,1715110252146,-500.0,0.00019726,2]
[326566333,1715110252156,-563.27,0.00019726,2]
[326566334,1715110252166,-589.05,0.00019726,2]
[326566335,1715110252176,-633.29,0.00019726,2]
[326566336,1715110252186,-500.0,0.00019726,2]
[326566337,1715110252196,-728.46,0.00019726,2]
[326566338,1715110252205,-647.19,0.00019726,2]
[326566339,1715110252215,-500.0,0.00019726,2]
[326566340,1715110252225,-835.84,0.00019726,2]
[326566341,1715110252234,-550.59,0.00019726,2]
[326566342,1715110252246,-500.0,0.00019726,2]
[326566343,1715110252256,-500.0,0.00019726,2]
[326566344,1715110252265,-2692.91,0.00019726,2]
[326566345,1715110252275,-500.0,0.00019726,2]
[326566346,1715110252285,-1085.33,0.00019726,2]
[326566347,1715110252295,-500.0,0.00019726,2]
[326566348,1715110252304,-500.0,0.00019726,2]
[326566349,1715110252314,-617.78,0.00019726,2]
[326566350,1715110252324,-504.72,0.00019726,2]
[326566351,1715110252334,-1368.09,0.00019726,2]
[326566352,1715110252343,-7192.32,0.00019726,2]
[326566353,1715110252353,-603.99,0.00019726,2]
[326566354,1715110252363,-500.0,0.00019726,2]
[326566355,1715110252374,-788.76,0.00019726,2]
[326566356,1715110252384,-716.25,0.00019726,2]
[326566357,1715110252394,-1169.61,0.00019726,2]
[326566358,1715110252404,-741.15,0.00019726,2]
[326566359,1715110252414,-1068.78,0.00019726,2]
[326566360,1715110252425,-756.84,0.00019726,2]
[326566361,1715110252434,-554.26,0.00019726,2]
[326566362,1715110252445,-9040.79,0.00019726,2]
[326566363,1715110252454,-730.71,0.00019726,2]
[326566364,1715110252464,-2134.02,0.00019726,2]
[326566365,1715110252473,-1176.89,0.00019726,2]
[326566366,1715110252483,-500.0,0.00019726,2]
[326566367,1715110252493,-500.0,0.00019726,2]
[326566368,1715110252504,-500.0,0.00019726,2]
[326566369,1715110252514,-500.0,0.00019726,2]
[326566370,1715110252523,-269.29785758,0.00019726,2]
[326566371,1715110252533,-500.0,0.00019726,2]
[326566372,1715110252543,-522.9,0.00019726,2]
[326566373,1715110252553,-500.0,0.00019726,2]
[326566374,1715110252563,-500.0,0.00019726,2]
[326566375,1715110252572,-500.0,0.00019726,2]
[326566376,1715110252582,-437.60959705,0.00019726,2]
[326566377,1715110252592,-1132.42,0.00019726,2]
[326566378,1715110252601,-591.9,0.00019726,2]
[326566379,1715110252611,-691.74,0.00019726,2]
[326566380,1715110252621,-1583.36,0.00019726,2]
[326566381,1715110252632,-359.70703069,0.00019726,2]
[326566382,1715110252641,-500.0,0.00019726,2]
[326566383,1715110252651,-1363.83,0.00019726,2]
[326566384,1715110252660,-500.0,0.00019726,2]
[326566385,1715110252670,-500.0,0.00019726,2]
[326566386,1715110252679,-895.04,0.00019726,2]
[326566387,1715110252689,-500.0,0.00019726,2]
[326566388,1715110252698,-500.0,0.00019726,2]
[326566389,1715110252708,-1691.63,0.00019726,2]
[326566390,1715110252718,-500.0,0.00019726,2]
[326566391,1715110252728,-541.61,0.00019726,2]
[326566392,1715110252737,-500.0,0.00019726,2]
[326566393,1715110252747,-500.0,0.00019726,2]
[326566394,1715110252756,-500.0,0.00019726,2]
[326566395,1715110252766,-500.0,0.00019726,2]
[326566396,1715110252776,-500.0,0.00019726,2]
[326566397,1715110252786,-1030.46,0.00019726,2]
[326566398,1715110252795,-500.0,0.00019726,2]
[326566399,1715110252805,-500.0,0.00019726,2]
[326566400,1715110252814,-500.0,0.00019726,2]
[326566401,1715110252823,-702.52,0.00019726,2]
[326566402,1715110252833,-560.76,0.00019726,2]
[326566403,1715110252842,-500.0,0.00019726,2]
[326566404,1715110252852,-505.53,0.00019726,2]
[326566405,1715110252862,-1984.17,0.00019726,2]
[326566406,1715110252872,-500.0,0.00019726,2]
[326566407,1715110252882,-727.15,0.00019726,2]
[326566408,1715110252892,-500.0,0.00019726,2]
[326566409,1715110252902,-170.61248942,0.00019726,2]
[326566410,1715110252912,-500.0,0.00019726,2]
[326566411,1715110252921,-500.0,0.00019726,2]
[326566412,1715110252934,-641.62,0.00019726,2]
[326566413,1715110252944,-500.0,0.00019726,2]
[326566414,1715110252954,-766.36,0.00019726,2]
[326566415,1715110252964,-500.0,0.00019726,2]
[326566416,1715110252975,-500.0,0.00019726,2]
[326566417,1715110252984,-500.0,0.00019726,2]
[326566418,1715110252994,-500.0,0.00019726,2]
[326566419,1715110253004,-500.0,0.00019726,2]
[326566420,1715110253016,-158.6267676,0.00019726,2]
[326566421,1715110253026,-1865.11,0.00019726,2]
[326566422,1715110253035,-500.0,0.00019726,2]
[326566423,1715110253045,-597.38,0.00019726,2]
[326566424,1715110253054,-500.0,0.00019726,2]
[326566425,1715110253064,-622.38,0.00019726,2]
[326566426,1715110253074,-500.0,0.00019726,2]
[326566427,1715110253083,-1750.58,0.00019726,2]
[326566428,1715110253093,-1662.53,0.00019726,2]
[326566429,1715110253103,-897.3,0.00019726,2]
[326566430,1715110253113,-500.0,0.00019726,2]
[326566431,1715110253122,-749.1,0.00019726,2]
[326566432,1715110253132,-809.41,0.00019726,2]
[326566433,1715110253141,-814.6,0.00019726,2]
[326566434,1715110253150,-1194.77,0.00019726,2]
[326566435,1715110253160,-1642.17,0.00019726,2]
[326566436,1715110253169,-500.0,0.00019726,2]
[326566437,1715110253179,-819.1,0.00019726,2]
[326566438,1715110253189,-608.3,0.00019726,2]
[326566439,1715110253198,-2530.53,0.00019726,2]
[326566440,1715110253207,-2294.58,0.00019726,2]
[326566441,1715110253217,-626.78,0.00019726,2]
[326566442,1715110253226,-500.0,0.00019726,2]
[326566443,1715110253236,-1583.67,0.00019726,2]
[326566444,1715110253246,-728.59,0.00019726,2]
[326566445,1715110253256,-500.0,0.00019726,2]
[326566446,1715110253265,-500.0,0.00019726,2]
[326566447,1715110253275,-500.0,0.00019726,2]
[326566448,1715110253285,-500.0,0.00019726,2]
[326566449,1715110253294,-502.48,0.00019726,2]
[326566450,1715110253304,-500.0,0.00019726,2]
[326566451,1715110253313,-500.0,0.00019726,2]
[326566452,1715110253322,-500.0,0.00019726,2]
[326566453,1715110253331,-500.0,0.00019726,2]
[326566454,1715110253340,-500.0,0.00019726,2]
[326566455,1715110253350,-1115.05,0.00019726,2]
[326566456,1715110253359,-500.0,0.00019726,2]
[326566457,1715110253370,-1163.7,0.00019726,2]
[326566458,1715110253379,-4237.52,0.00019726,2]
[326566459,1715110253389,-630.03501937,0.00019726,2]
[326566460,1715110253399,-520.54,0.00019726,2]
[326566461,1715110253408,-674.29,0.00019726,2]
[326566462,1715110253418,-1407.37,0.00019726,2]
[326566463,1715110253427,-500.0,0.00019726,2]
[326566464,1715110253436,-500.0,0.00019726,2]
[326566465,1715110253445,-500.0,0.00019726,2]
[326566466,1715110253611,-1877.67,0.00019726,2]
[326566467,1715110253621,-500.0,0.00019726,2]
[326566468,1715110253631,-1728.63,0.00019726,2]
[326566469,1715110253641,-500.0,0.00019726,2]
[326566470,1715110253650,-500.0,0.00019726,2]
[326566471,1715110253660,-500.0,0.00019726,2]
[326566472,1715110253669,-500.0,0.00019726,2]
[326566473,1715110253678,-500.0,0.00019726,2]
[326566474,1715110253687,-1106.35,0.00019726,2]
[326566475,1715110253697,-1963.36,0.00019726,2]
[326566476,1715110253706,-662.96,0.00019726,2]
[326566477,1715110253716,-647.86,0.00019726,2]
[326566478,1715110253726,-645.05,0.00019726,2]
[326566479,1715110253735,-500.0,0.00019726,2]
[326566480,1715110253744,-500.0,0.00019726,2]
[326566481,1715110253754,-4912.36,0.00019726,2]
[326566482,1715110253763,-500.0,0.00019726,2]
[326566483,1715110253773,-500.0,0.00019726,2]
[326566484,1715110253783,-900.23,0.00019726,2]
[326566485,1715110253792,-979.26,0.00019726,2]
[326566486,1715110253802,-500.0,0.00019726,2]
[326566487,1715110253811,-500.0,0.00019726,2]
[326566488,1715110253821,-894.2,0.00019726,2]
[326566489,1715110253830,-500.0,0.00019726,2]
[326566490,1715110253840,-500.0,0.00019726,2]
[326566491,1715110253849,-681.9,0.00019726,2]
[326566492,1715110253858,-500.0,0.00019726,2]
[326566493,1715110253868,-550.54,0.00019726,2]
[326566494,1715110253877,-500.0,0.00019726,2]
[326566495,1715110253887,-1649.73,0.00019726,2]
[326566496,1715110253896,-806.48,0.00019726,2]
[326566497,1715110253906,-864.32,0.00019726,2]
[326566498,1715110253915,-500.0,0.00019726,2]
[326566499,1715110253924,-500.0,0.00019726,2]
[326566500,1715110253937,-756.1,0.00019726,2]
[326566501,1715110253947,-1315.15,0.00019726,2]
[326566502,1715110253956,-516.04,0.00019726,2]
[326566503,1715110253965,-500.0,0.00019726,2]
[326566504,1715110253976,-1269.42,0.00019726,2]
[326566505,1715110253985,-2265.37,0.00019726,2]
[326566506,1715110253994,-1224.69,0.00019726,2]
[326566507,1715110254004,-500.0,0.00019726,2]
[326566508,1715110254016,-500.0,0.00019726,2]
[326566509,1715110254025,-500.0,0.00019726,2]
[326566510,1715110254035,-500.0,0.00019726,2]
[326566511,1715110254045,-892.65,0.00019726,2]
[326566512,1715110254054,-500.0,0.00019726,2]
[326566513,1715110254063,-500.0,0.00019726,2]
[326566514,1715110254073,-500.0,0.00019726,2]
[326566515,1715110254083,-1099.22,0.00019726,2]
[326566516,1715110254092,-701.4,0.00019726,2]
[326566517,1715110254101,-500.0,0.00019726,2]
[326566518,1715110254111,-781.87,0.00019726,2]
[326566519,1715110254120,-2122.37,0.00019726,2]
[326566520,1715110254129,-716.3,0.00019726,2]
[326566521,1715110254139,-9716.2,0.00019726,2]
[326566522,1715110254149,-1460.46,0.00019726,2]
[326566523,1715110254158,-500.0,0.00019726,2]
[326566524,1715110254167,-809.83,0.00019726,2]
[326566525,1715110254177,-500.0,0.00019726,2]
[326566526,1715110254186,-500.0,0.00019726,2]
[326566527,1715110254196,-1486.49,0.00019726,2]
[326566528,1715110254206,-500.0,0.00019726,2]
[326566529,1715110254216,-896.08,0.00019726,2]
[326566530,1715110254225,-782.8,0.00019726,2]
[326566531,1715110254236,-500.0,0.00019726,2]
[326566532,1715110254246,-500.0,0.00019726,2]
[326566533,1715110254256,-500.0,0.00019726,2]
[326566534,1715110254266,-2580.33,0.00019726,2]
[326566535,1715110254275,-589.89,0.00019726,2]
[326566536,1715110254285,-500.0,0.00019726,2]
[326566537,1715110254295,-930.45,0.00019726,2]
[326566538,1715110254304,-500.0,0.00019726,2]
[326566539,1715110254314,-500.0,0.00019726,2]
[326566540,1715110254323,-500.0,0.00019726,2]